bitfinex/quotes_ETHUSD_20241104
["timestamp","ask_amount","ask_price","bid_price","bid_amount"]
[1730694866527,4.0354,2478.1,2477.7,1.07978914]
[1730694866726,1.7965507,2478.2,2477.8,0.22441817]
[1730694866928,4.03554,2478.0,2477.6,0.419788]
[1730694867129,4.03554,2478.0,2477.7,0.22453822]
[1730694867838,4.03546,2478.1,2477.7,0.22453822]
[1730694868061,4.03561,2478.0,2477.7,0.22453822]
[1730694868262,4.03561,2478.0,2477.6,0.30229705]
[1730694868560,4.03561,2478.0,2477.7,0.22453822]
[1730694868731,5.0895557,2478.0,2477.7,0.22453822]
[1730694868926,0.8252,2477.9,2477.7,0.22453822]
[1730694869768,0.8252,2477.9,2477.5,1.14134923]
[1730694869969,0.8252,2477.9,2477.8,0.22447227]
[1730694870138,0.8252,2477.9,2477.5,1.14134923]
[1730694870344,0.8252,2477.9,2477.6,0.2247124]
[1730694870859,5.85592157,2477.9,2477.6,0.2247124]
[1730694871446,4.03585,2477.8,2477.6,0.2247124]
[1730694871849,5.85590157,2477.9,2477.6,0.2247124]
[1730694882998,4.03586,2477.8,2477.6,0.2247124]
[1730694885600,5.85593157,2477.9,2477.6,0.2247124]
[1730694887462,4.03586,2477.8,2477.6,0.2247124]
[1730694890795,5.85596157,2477.9,2477.6,0.2247124]
[1730694893197,6.8325139,2477.8,2477.6,0.2247124]
[1730694893384,1.15346686,2477.8,2477.6,0.2247124]
[1730694893902,5.18933686,2477.8,2477.6,0.2247124]
[1730694895188,1.15346686,2477.8,2477.6,0.2247124]
[1730694895684,5.18930686,2477.8,2477.6,0.2247124]
[1730694898898,5.18941686,2477.8,2477.6,0.2247124]
[1730694900669,0.60146169,2477.7,2477.6,0.2247124]
[1730694900865,4.63746169,2477.7,2477.6,0.2247124]
[1730694901179,5.40416169,2477.7,2477.6,0.2247124]
[1730694902427,5.40416169,2477.7,2477.6,0.1247124]
[1730694902594,5.40416169,2477.7,2477.6,0.22483266]
[1730694903685,5.40416169,2477.7,2477.5,0.0615914]
[1730694903911,6.78867691,2477.6,2477.5,0.0615914]
[1730694904904,1.10932987,2477.6,2477.5,0.2832499]
[1730694905093,4.63746169,2477.7,2477.5,0.2832499]
[1730694905094,0.7667,2478.0,2477.5,1.1030499]
[1730694905407,4.03575,2477.9,2477.5,1.1030499]
[1730694906912,4.03551,2478.0,2477.5,1.1030499]
[1730694907585,4.03581,2477.9,2477.5,1.1030499]
[1730694912917,4.0358,2477.9,2477.5,1.1030499]
[1730694913215,4.03595,2477.8,2477.5,1.1030499]
[1730694914627,8.0716,2477.9,2477.5,1.1030499]
[1730694915139,4.03585,2477.8,2477.5,1.1030499]
[1730694916435,5.11214207,2477.8,2477.5,1.1030499]
[1730694918618,1.90079207,2477.8,2477.5,0.2832499]
[1730694918802,5.67934704,2477.6,2477.5,0.2832499]
[1730694919138,4.03616,2477.6,2477.5,0.2832499]
[1730694921747,4.86066,2477.6,2477.5,0.2832499]
[1730694921949,4.86066,2477.6,2477.5,0.1832499]
[1730694922116,4.86066,2477.6,2477.1,0.8116]
[1730694922322,4.03652,2477.4,2477.2,0.22070694]
[1730694922644,4.03665,2477.3,2477.2,0.22070694]
[1730694924924,4.03652,2477.4,2476.9,0.97857887]
[1730694924925,4.03682,2477.2,2476.9,0.97857887]
[1730694925138,4.03682,2477.2,2477.0,0.52354744]
[1730694925344,4.03682,2477.2,2477.0,0.22099078]
[1730694929940,4.80242,2477.3,2477.0,0.22099078]
[1730694930222,4.03682,2477.2,2477.0,0.22099078]
[1730694932238,4.03682,2477.2,2477.0,0.29681009]
[1730694933438,4.03661,2477.4,2477.0,0.29681009]
[1730694933638,4.0366,2477.4,2477.0,0.29681009]
[1730694933858,4.0369,2477.2,2477.0,0.29681009]
[1730694934229,4.0366,2477.4,2477.0,0.29681009]
[1730694934432,4.03682,2477.2,2477.0,0.29681009]
[1730694934755,4.03697,2477.1,2477.0,0.29681009]
[1730694935145,4.03728,2477.0,2476.7,0.30233624]
[1730694935334,4.03697,2477.1,2476.8,0.29720677]
[1730694935535,4.03697,2477.1,2476.6,0.806]
[1730694935536,4.03731,2476.9,2476.6,1.10833624]
[1730694935735,4.03731,2476.9,2476.7,0.29732999]
[1730694939376,4.03686,2477.2,2476.8,0.7916]
[1730694939574,1.09348236,2477.2,2476.9,0.29708356]
[1730694940072,5.13032236,2477.2,2476.9,0.29708356]
[1730694942243,1.09348236,2477.2,2476.9,0.29708356]
[1730694942684,4.0366,2477.4,2476.9,4.33432356]
[1730694942854,5.289056,2477.5,2477.0,4.82873]
[1730694943149,4.03674,2477.3,2477.1,0.29683717]
[1730694943342,5.67970704,2477.4,2476.7,4.82922]
[1730694943546,4.03677,2477.3,2476.8,0.29726692]
[1730694943891,4.03677,2477.3,2476.8,4.33472692]
[1730694944037,4.03677,2477.3,2476.9,0.7916]
[1730694944469,4.03677,2477.3,2477.0,0.29702051]
[1730694947252,4.03652,2477.4,2477.0,0.29702051]
[1730694947977,8.07313,2477.4,2477.0,0.29702051]
[1730694948180,4.03652,2477.4,2477.0,0.29702051]
[1730694948481,4.03665,2477.3,2477.0,0.29702051]
[1730694948685,4.03652,2477.4,2477.0,0.29702051]
[1730694948842,8.07312,2477.4,2477.0,0.29702051]
[1730694949248,4.03667,2477.3,2477.0,0.29702051]
[1730694949471,4.03652,2477.4,2477.0,0.29702051]
[1730694949675,8.07312,2477.4,2477.0,0.29702051]
[1730694950075,4.03667,2477.3,2477.0,0.29702051]
[1730694950591,4.03684,2477.2,2477.0,0.29702051]
[1730694951153,4.844191,2477.2,2477.0,0.29702051]
[1730694953177,4.03684,2477.2,2477.0,0.29702051]
[1730694953791,4.03697,2477.1,2477.0,0.29702051]
[1730694954867,4.03697,2477.1,2476.7,0.7916]
[1730694955078,4.03697,2477.1,2477.0,0.29703105]
[1730694955282,4.03697,2477.1,2476.7,0.7916]
[1730694955482,4.921011,2477.1,2477.0,0.29703105]
[1730694955952,4.921011,2477.1,2476.7,0.7916]
[1730694956279,4.921011,2477.1,2477.0,0.29703105]
[1730694956489,4.921011,2477.1,2476.7,0.7916]
[1730694956658,4.80344,2477.2,2477.0,0.29703105]
[1730694956858,4.03684,2477.2,2476.7,0.7916]
[1730694957071,4.03684,2477.2,2477.1,0.29690786]
[1730694957247,4.03684,2477.2,2476.7,4.82922]
[1730694957455,0.486066,2477.5,2477.1,1.08850786]
[1730694957456,4.03635,2477.5,2477.1,1.08850786]
[1730694957648,4.516645,2477.5,2477.1,0.7916]
[1730694957854,4.80292,2477.6,2477.2,0.29678467]
[1730694958091,4.03657,2477.4,2477.2,0.29678467]
[1730694959594,4.80288,2477.6,2477.2,0.29678467]
[1730694959595,8.8392,2477.6,2477.2,0.29678467]
[1730694959887,4.03634,2477.5,2477.2,0.29678467]
[1730694962500,4.0364,2477.5,2477.2,0.29678467]
[1730694962870,4.03628,2477.6,2477.2,0.29678467]
[1730694963061,4.0365,2477.4,2477.2,0.29678467]
[1730694963262,8.07315,2477.4,2477.2,0.29678467]
[1730694963570,4.0365,2477.4,2477.2,0.29678467]
[1730694964792,8.0731,2477.4,2477.2,0.29678467]
[1730694965249,4.0365,2477.4,2477.2,0.29678467]
[1730694965408,4.03595,2477.8,2477.3,0.7916]
[1730694965707,4.03601,2477.7,2477.3,1.36140814]
[1730694966393,4.03618,2477.6,2477.3,1.08825097]
[1730694966801,4.03625,2477.6,2477.3,1.08825097]
[1730694967996,4.036,2477.7,2477.3,1.08825097]
[1730694968565,4.036,2477.7,2477.3,5.12490097]
[1730694968787,4.036,2477.7,2477.4,0.8073]
[1730694968999,4.036,2477.7,2477.4,1.1031123]
[1730694969212,4.03617,2477.6,2477.4,1.1031123]
[1730694969593,4.036,2477.7,2477.4,1.1031123]
[1730694969798,4.03617,2477.6,2477.4,1.1031123]
[1730694970192,4.439937,2477.5,2477.4,0.2958123]
[1730694970402,4.03655,2477.4,2477.2,0.8073]
[1730694970714,4.439937,2477.5,2477.2,0.8073]
[1730694970715,8.07279,2477.5,2477.2,0.8073]
[1730694970884,4.03651,2477.4,2477.2,0.8073]
[1730694972026,4.03632,2477.5,2477.2,0.8073]
[1730694975224,4.85917,2477.7,2477.2,0.8073]
[1730694975225,4.03618,2477.6,2477.2,0.8073]
[1730694975817,5.0900117,2477.6,2477.2,0.8073]
[1730694976016,4.03642,2477.5,2477.2,0.8073]
[1730694979142,5.67960704,2477.5,2477.1,0.34530379]
[1730694979440,4.03681,2477.2,2477.1,0.17266007]
[1730694979640,5.0907987,2477.2,2477.1,0.17266007]
[1730694979812,4.03699,2477.1,2476.8,0.8073]
[1730694980012,8.07409,2477.1,2476.8,0.8073]
[1730694980411,4.03699,2477.1,2476.8,0.7073]
[1730694981752,8.07405,2477.1,2476.8,0.7073]
[1730694981939,4.03699,2477.1,2476.8,0.7073]
[1730694982651,4.03699,2477.1,2476.9,0.2964237]
[1730694982955,5.11408257,2477.1,2476.9,0.2964237]
[1730694983141,5.93718257,2477.1,2476.9,0.2964237]
[1730694983446,5.93718257,2477.1,2476.8,0.30264819]
[1730694983447,4.03714,2477.0,2476.8,0.30264819]
[1730694983748,5.93718257,2477.1,2476.7,0.17262201]
[1730694983951,5.93718257,2477.1,2476.8,0.30265366]
[1730694984112,5.93718257,2477.1,2476.7,0.17262201]
[1730694984307,4.03714,2477.0,2476.8,0.30265365]
[1730694984612,9.97429257,2477.1,2476.7,0.17262201]
[1730694984823,5.93718257,2477.1,2476.8,0.30265101]
[1730694985039,0.59371826,2477.0,2476.7,0.17262201]
[1730694985341,0.59371826,2477.0,2476.6,0.7752]
[1730694985342,4.63093826,2477.0,2476.6,0.7752]
[1730694986407,0.59371826,2477.0,2476.6,0.7752]
[1730694986603,0.59371826,2477.0,2476.7,0.30261448]
[1730694986840,0.59371826,2477.0,2476.6,0.94779765]
[1730694986841,4.63086826,2477.0,2476.6,0.94779765]
[1730694987041,4.63086826,2477.0,2476.7,0.30261491]
[1730694987349,4.63086826,2477.0,2476.6,0.7752]
[1730694988924,4.63086826,2477.0,2476.7,0.30258049]
[1730694989340,4.63086826,2477.0,2476.6,0.7752]
[1730694989816,0.7688,2476.8,2476.7,0.30256935]
[1730694990019,0.94909583,2476.9,2476.5,1.3252]
[1730694991015,4.98648583,2476.9,2476.5,0.7752]
[1730694991514,4.98648583,2476.9,2476.5,1.07772253]
[1730694991715,4.98648583,2476.9,2476.5,0.7752]
[1730694992820,4.03754,2476.8,2476.5,0.7752]
[1730694993037,5.18114129,2476.8,2476.5,0.7752]
[1730694994656,4.03754,2476.8,2476.5,0.7752]
[1730694995948,4.03732,2476.9,2476.5,0.7752]
[1730694996316,4.03732,2476.9,2476.5,1.07769528]
[1730694997551,8.07473,2476.9,2476.5,1.07769528]
[1730694997857,4.03732,2476.9,2476.6,0.29694676]
[1730694999645,8.07472,2476.9,2476.6,0.29694676]
[1730695000270,4.03732,2476.9,2476.6,0.29694676]
[1730695000827,8.07474,2476.9,2476.6,0.29694676]
[1730695001257,4.03732,2476.9,2476.6,0.29694676]
[1730695001873,8.07473,2476.9,2476.6,0.29694676]
[1730695003149,9.673703,2476.9,2476.6,0.29694676]
[1730695003352,4.03749,2476.8,2476.6,0.29694676]
[1730695003731,4.03749,2476.8,2476.4,0.30233177]
[1730695003928,4.03749,2476.8,2476.7,0.29681449]
[1730695004167,4.03749,2476.8,2476.4,0.30233177]
[1730695004471,4.03749,2476.8,2476.7,0.2968175]
[1730695004698,4.03749,2476.8,2476.4,0.30233177]
[1730695004699,4.924105,2476.8,2476.4,0.30233177]
[1730695004832,4.03749,2476.8,2476.7,0.2968175]
[1730695005029,4.03749,2476.8,2476.4,0.30233177]
[1730695005256,4.03749,2476.8,2476.7,0.2968175]
[1730695005452,4.82884,2476.9,2476.4,0.30233177]
[1730695005763,4.03716,2477.0,2476.7,0.2968175]
[1730695005964,0.482866,2476.9,2476.6,0.7747]
[1730695006132,8.07445,2477.0,2476.8,0.29669428]
[1730695006333,4.03737,2476.9,2476.7,0.2968175]
[1730695006543,4.03737,2476.9,2476.6,0.7747]
[1730695007168,8.07442,2477.0,2476.6,0.7747]
[1730695007385,4.03716,2477.0,2476.6,0.7747]
[1730695007563,8.07441,2477.0,2476.6,0.7747]
[1730695008251,4.03716,2477.0,2476.6,0.7747]
[1730695009083,8.07438,2477.0,2476.6,0.7747]
[1730695009389,4.03716,2477.0,2476.6,0.7747]
[1730695011579,8.0744,2477.0,2476.6,0.7747]
[1730695011940,4.03716,2477.0,2476.6,0.7747]
[1730695012147,8.07441,2477.0,2476.6,0.7747]
[1730695012384,4.03716,2477.0,2476.6,0.7747]
[1730695012591,8.07441,2477.0,2476.7,0.2968175]
[1730695012740,8.961001,2477.0,2476.7,0.2968175]
[1730695013682,4.923751,2477.0,2476.7,0.2968175]
[1730695013984,4.03685,2477.2,2476.7,0.2968175]
[1730695013985,4.03685,2477.2,2476.8,0.7747]
[1730695014186,4.03666,2477.3,2476.8,4.1180995]
[1730695014403,4.03666,2477.3,2476.9,1.07125904]
[1730695014703,4.03646,2477.5,2477.0,4.03713]
[1730695014995,4.03646,2477.5,2477.1,0.7747]
[1730695015354,4.03646,2477.5,2477.1,1.07100362]
[1730695015977,8.07287,2477.5,2477.1,1.07100362]
[1730695016182,4.03641,2477.5,2477.1,1.07100362]
[1730695016379,8.07287,2477.5,2477.1,1.07100362]
[1730695016650,4.03641,2477.5,2477.1,1.07100362]
[1730695016886,4.0365,2477.4,2477.1,1.07100362]
[1730695020192,4.03665,2477.3,2477.1,1.07100362]
[1730695020356,8.07341,2477.3,2477.1,0.29630362]
[1730695020702,4.03665,2477.3,2477.1,0.29630362]
[1730695020983,4.0365,2477.4,2476.9,4.81198]
[1730695021193,4.0365,2477.4,2477.2,0.29613682]
[1730695021356,4.0365,2477.4,2476.9,4.81198]
[1730695021554,4.0365,2477.4,2477.3,0.29601365]
[1730695021756,4.0365,2477.4,2476.9,4.81198]
[1730695021991,4.0365,2477.4,2477.3,0.29601365]
[1730695022291,4.03675,2477.3,2476.9,0.7747]
[1730695022457,4.0371,2477.1,2476.9,0.7747]
[1730695023663,4.0371,2477.1,2476.9,0.6747]
[1730695024308,4.03665,2477.3,2476.9,0.6747]
[1730695024463,4.03649,2477.4,2476.9,0.6747]
[1730695024964,4.03649,2477.4,2476.9,4.71192]
[1730695025174,4.03649,2477.4,2476.9,5.586844]
[1730695025356,4.0364,2477.5,2476.9,1.549624]
[1730695025556,8.07341,2477.3,2476.9,0.6747]
[1730695025757,8.07341,2477.3,2476.5,8.75618834]
[1730695025758,4.03714,2477.0,2476.5,8.75618834]
[1730695025978,4.03714,2477.0,2476.6,1.17628859]
[1730695025979,4.0374,2476.9,2476.6,1.17628859]
[1730695026185,4.0374,2476.9,2476.7,0.30265664]
[1730695026373,4.0374,2476.9,2476.6,0.17290327]
[1730695026594,4.0374,2476.9,2476.7,0.30267953]
[1730695026902,4.0374,2476.9,2476.6,0.94760327]
[1730695027055,4.0374,2476.9,2476.7,0.30268145]
[1730695027253,4.0374,2476.9,2476.6,0.9475873]
[1730695027496,4.0374,2476.9,2476.8,0.29660704]
[1730695027697,4.844854,2476.9,2476.7,0.29673026]
[1730695027999,4.844854,2476.9,2476.5,0.41977172]
[1730695028000,4.844854,2476.9,2476.6,0.30269886]
[1730695028295,4.844854,2476.9,2476.7,0.29676335]
[1730695028454,1.1316681,2476.8,2476.6,0.30270087]
[1730695028654,1.1316681,2476.8,2476.5,0.17288717]
[1730695029099,1.1316681,2476.8,2476.6,0.30270058]
[1730695029269,1.1316681,2476.8,2476.5,0.17288853]
[1730695029475,1.1316681,2476.8,2476.6,0.30270139]
[1730695029773,1.1316681,2476.8,2476.5,0.17288853]
[1730695030099,1.1316681,2476.8,2476.6,0.30270116]
[1730695030271,1.1316681,2476.8,2476.5,0.17288853]
[1730695030474,1.1316681,2476.8,2476.6,0.3027038]
[1730695030690,1.1316681,2476.8,2476.5,0.17288853]
[1730695030997,4.0374,2476.9,2476.6,0.30270346]
[1730695031292,4.0374,2476.9,2476.5,0.17288853]
[1730695031462,4.0374,2476.9,2476.6,0.30270009]
[1730695031662,4.0374,2476.9,2476.5,0.17288853]
[1730695031865,4.0374,2476.9,2476.6,0.30269986]
[1730695032089,4.78541396,2476.9,2476.5,0.17288853]
[1730695032291,4.78541396,2476.9,2476.6,0.30269976]
[1730695032602,4.78541396,2476.9,2476.5,0.17288853]
[1730695032774,4.78541396,2476.9,2476.6,0.3026969]
[1730695032983,4.78541396,2476.9,2476.4,8.85074]
[1730695033163,4.0374,2476.9,2476.5,0.17288357]
[1730695033497,4.0374,2476.9,2476.6,0.30269685]
[1730695033701,4.0374,2476.9,2476.5,0.17288357]
[1730695033902,4.0374,2476.9,2476.6,0.30269337]
[1730695034102,4.924004,2476.9,2476.5,0.17288357]
[1730695034261,4.924004,2476.9,2476.6,0.3026938]
[1730695034567,4.03747,2476.8,2476.5,0.17288357]
[1730695034765,4.03747,2476.8,2476.6,0.30269171]
[1730695035067,4.03747,2476.8,2476.4,4.81271]
[1730695035375,4.03747,2476.8,2476.5,0.30269206]
[1730695035697,4.03747,2476.8,2476.4,1.82592873]
[1730695035901,4.03747,2476.8,2476.5,0.30268988]
[1730695036060,4.03747,2476.8,2476.4,1.8259297]
[1730695036270,4.03747,2476.8,2476.4,0.7747]
[1730695036500,4.03747,2476.8,2476.5,0.30269176]
[1730695036672,1.1395901,2476.8,2476.4,4.98560027]
[1730695036869,8.86588,2477.0,2476.5,0.30269263]
[1730695037076,8.86588,2477.0,2476.4,8.85075]
[1730695037277,4.03714,2477.0,2476.6,0.8191]
[1730695037798,8.07437,2477.0,2476.6,0.8191]
[1730695038903,4.03714,2477.0,2476.6,0.89985155]
[1730695039119,4.03691,2477.2,2476.7,4.03762]
[1730695039309,0.7544,2477.3,2476.8,4.85648]
[1730695039610,4.03657,2477.4,2476.9,4.03729]
[1730695039828,8.07317,2477.4,2476.9,4.03729]
[1730695040103,4.03667,2477.3,2476.8,4.85656]
[1730695040353,4.03667,2477.3,2476.9,1.19205546]
[1730695040512,4.03667,2477.3,2476.9,0.889418]
[1730695042513,4.03667,2477.3,2477.0,0.29639674]
[1730695042871,4.03667,2477.3,2476.9,0.30260977]
[1730695043099,4.03667,2477.3,2477.1,0.29627355]
[1730695043309,4.03667,2477.3,2476.8,4.85656]
[1730695043477,4.03667,2477.3,2477.2,0.29615037]
[1730695043689,4.03657,2477.4,2476.9,4.03728]
[1730695043883,4.03657,2477.4,2477.2,0.29615037]
[1730695044101,8.07316,2477.4,2476.9,4.03728]
[1730695044286,4.03657,2477.4,2477.3,0.2960272]
[1730695044483,4.6799857,2477.4,2476.9,4.03728]
[1730695044782,4.6799857,2477.4,2477.3,0.2960272]
[1730695044783,4.03657,2477.4,2477.3,0.2960272]
[1730695044985,4.03674,2477.3,2476.8,4.85656]
[1730695046406,4.03674,2477.3,2476.9,3.0]
[1730695048424,0.7745,2477.2,2476.9,3.0]
[1730695050196,0.7745,2477.2,2476.9,4.03722]
[1730695050398,5.67967704,2477.4,2476.9,4.03722]
[1730695050399,4.03649,2477.4,2476.9,4.03722]
[1730695050582,4.03649,2477.4,2476.9,8.07441]
[1730695050785,5.0855407,2477.4,2476.9,4.03719]
[1730695053145,4.81083,2477.5,2477.0,4.03713]
[1730695053429,4.81083,2477.5,2477.1,4.03696]
[1730695053736,0.7745,2477.5,2477.1,4.03696]
[1730695054401,0.7745,2477.5,2477.0,8.0741]
[1730695054805,0.7745,2477.5,2477.0,4.03705]
[1730695056032,0.7745,2477.5,2477.1,0.7871]
[1730695056325,0.7745,2477.5,2477.1,4.82399]
[1730695057430,4.03618,2477.6,2477.1,4.82399]
[1730695057634,4.03618,2477.6,2477.2,0.29607815]
[1730695058196,3.25596963,2481.7,2477.3,4.83512]
[1730695058197,4.80706,2477.9,2477.3,4.83512]
[1730695058439,4.80706,2477.9,2477.4,4.0364]
[1730695058733,4.03556,2478.0,2477.5,4.83492]
[1730695059033,8.07122,2478.0,2477.5,5.1305956]
[1730695059233,4.03577,2477.9,2477.5,1.0942756]
[1730695064225,4.03586,2477.8,2477.5,1.0942756]
[1730695066310,4.80716,2477.8,2477.5,0.2956756]
[1730695066820,4.80716,2477.8,2477.3,7.83523]
[1730695067355,4.80716,2477.8,2477.4,0.29575364]
[1730695073348,5.96062877,2477.8,2477.4,0.29575364]
[1730695079466,4.80716,2477.8,2477.4,0.29575364]
[1730695083387,0.7713,2477.8,2477.4,4.33222364]
[1730695083557,4.80716,2477.8,2477.4,4.33222364]
[1730695084947,4.80716,2477.8,2477.4,0.29575364]
[1730695085442,0.7713,2477.8,2477.4,0.29575364]
[1730695085644,2.69175774,2478.0,2477.7,4.03589]
[1730695085645,0.7713,2478.0,2477.7,4.03589]
[1730695085887,0.7713,2478.2,2477.7,4.03589]
[1730695086089,0.7713,2478.2,2477.9,4.03567]
[1730695086584,0.7713,2478.2,2478.0,0.29498934]
[1730695086945,0.7713,2478.2,2477.8,4.03582]
[1730695087145,0.7713,2478.2,2477.9,0.2950944]
[1730695088282,4.85979,2478.4,2478.0,4.03551]
[1730695088486,4.85979,2478.4,2477.9,1.0639944]
[1730695088645,4.85979,2478.4,2478.0,4.33042921]
[1730695090201,4.03505,2478.3,2478.0,0.29492921]
[1730695090805,4.03505,2478.3,2477.8,4.03574]
[1730695091267,4.03505,2478.3,2477.9,0.29495161]
[1730695095707,0.8249,2478.3,2477.9,0.29495161]
[1730695096013,8.07057,2478.2,2477.7,7.80481]
[1730695096209,8.07057,2478.2,2478.0,0.29482851]
[1730695096376,8.07057,2478.2,2477.7,7.80481]
[1730695096573,4.03528,2478.2,2477.8,0.29507472]
[1730695096781,4.03528,2478.2,2477.7,7.80481]
[1730695097015,4.03528,2478.2,2477.8,0.29507472]
[1730695097216,4.03528,2478.2,2477.8,4.33090472]
[1730695097414,4.03528,2478.2,2477.8,4.03583]
[1730695097590,4.03528,2478.2,2477.9,0.29495161]
[1730695097591,0.8249,2478.1,2477.9,0.29495161]
[1730695104525,1.33559887,2478.1,2477.9,0.29495161]
[1730695104727,0.8249,2478.1,2477.6,4.03605]
[1730695104927,0.8249,2478.1,2477.7,4.321246]
[1730695108126,0.8249,2478.1,2477.8,4.03582]
[1730695108333,0.8241,2478.3,2477.9,0.28509578]
[1730695108515,1.64318704,2478.6,2478.0,1.64318704]
[1730695108516,0.8241,2478.6,2478.0,1.64318704]
[1730695108695,4.85873,2478.6,2478.1,4.32017508]
[1730695109603,4.03471,2478.5,2478.1,4.32017508]
[1730695111237,0.8241,2478.4,2478.1,0.28484508]
[1730695112146,0.8241,2478.4,2478.1,4.32017508]
[1730695116449,0.8241,2478.4,2478.1,5.10348295]
[1730695119447,0.8241,2478.4,2478.1,4.32017508]
[1730695130976,0.82195835,2478.4,2478.1,4.32017508]
[1730695140776,0.82195835,2478.4,2478.1,0.28484508]
[1730695141695,0.82195835,2478.4,2478.1,4.32016508]
[1730695142900,0.82195835,2478.4,2478.2,4.0351]
[1730695143201,0.82195835,2478.4,2478.3,1.12003976]
[1730695144474,0.82195835,2478.4,2478.3,0.28451325]
[1730695144868,0.82195835,2478.4,2478.0,7.03549]
[1730695145368,0.82195835,2478.4,2478.1,0.28475339]
[1730695147002,0.82195835,2478.4,2478.1,4.32006339]
[1730695147176,0.82195835,2478.4,2478.1,0.28475339]
[1730695148877,4.03518,2478.2,2478.1,0.28475339]
[1730695149105,4.79188,2478.2,2477.8,4.03583]
[1730695149629,4.79188,2478.2,2477.9,0.28499958]
[1730695156112,4.79188,2478.2,2477.7,4.03597]
[1730695156314,4.79188,2478.2,2477.8,0.58786277]
[1730695156529,4.79188,2478.2,2477.8,0.28520985]
[1730695156827,4.79188,2478.2,2477.7,4.03597]
[1730695157031,4.79188,2478.2,2477.9,0.28508673]
[1730695157203,4.79188,2478.2,2477.8,0.28520985]
[1730695157402,4.79188,2478.2,2477.7,4.03597]
[1730695157643,4.79188,2478.2,2477.9,0.28508673]
[1730695157846,4.79188,2478.2,2477.8,0.28520985]
[1730695158059,4.79188,2478.2,2477.7,4.03597]
[1730695158060,4.79188,2478.2,2478.0,0.28496363]
[1730695158200,4.79188,2478.2,2477.9,0.28508673]
[1730695158400,4.79188,2478.2,2477.7,4.03597]
[1730695158662,4.79188,2478.2,2478.0,0.28496363]
[1730695158935,4.79188,2478.2,2478.1,0.28484054]
[1730695159149,4.79188,2478.2,2477.8,0.30261667]
[1730695159304,4.79188,2478.2,2478.1,0.28484054]
[1730695159503,4.79188,2478.2,2477.8,0.30260379]
[1730695159715,4.79188,2478.2,2477.8,1.58646438]
[1730695159942,4.79188,2478.2,2477.9,0.28508673]
[1730695160232,8.82715,2478.2,2477.9,0.28508673]
[1730695160402,4.03538,2478.1,2477.6,11.52607]
[1730695160743,0.7567,2478.0,2477.7,1.45521053]
[1730695161045,0.7567,2478.0,2477.7,1.152607]
[1730695161204,0.7567,2478.0,2477.8,4.03581]
[1730695161404,4.79174,2478.3,2477.8,4.80591]
[1730695162339,4.79174,2478.3,2477.8,6.5543587]
[1730695162851,4.79174,2478.3,2477.9,0.28509124]
[1730695163205,4.03522,2478.2,2477.9,0.28509124]
[1730695163615,4.03522,2478.2,2477.7,5.188577]
[1730695163824,4.03522,2478.2,2478.0,0.28496814]
[1730695164025,4.03522,2478.2,2477.8,4.03581]
[1730695164254,4.03522,2478.2,2477.8,1.7510587]
[1730695164457,4.03522,2478.2,2477.9,0.28509124]
[1730695165458,8.07049,2478.2,2477.9,0.28509124]
[1730695165671,4.03522,2478.2,2477.9,0.28509124]
[1730695166433,4.03522,2478.2,2477.8,0.30257339]
[1730695166619,4.03522,2478.2,2478.0,0.28496814]
[1730695166840,4.03522,2478.2,2477.8,0.30257263]
[1730695167054,4.03522,2478.2,2478.1,0.28484505]
[1730695167263,4.03522,2478.2,2477.8,0.30257265]
[1730695167448,4.03522,2478.2,2478.1,0.28484505]
[1730695167762,8.07049,2478.2,2478.1,0.28484505]
[1730695167962,4.03522,2478.2,2477.8,0.30257081]
[1730695168259,4.03522,2478.2,2478.1,0.28484505]
[1730695168479,8.07048,2478.2,2477.8,0.30256994]
[1730695168767,4.03522,2478.2,2477.8,1.26246699]
[1730695169075,4.03522,2478.2,2477.9,0.28509124]
[1730695170430,8.07049,2478.2,2477.9,0.28509124]
[1730695171446,4.03522,2478.2,2477.9,0.28509124]
[1730695172788,8.07053,2478.2,2477.9,0.28509124]
[1730695175641,4.03522,2478.2,2477.9,0.28509124]
[1730695176782,8.07051,2478.2,2477.9,0.28509124]
[1730695177908,4.03522,2478.2,2477.9,0.28509124]
[1730695178400,8.07051,2478.2,2477.9,0.28509124]
[1730695178585,4.03522,2478.2,2477.9,0.28509124]
[1730695179285,8.0705,2478.2,2477.9,0.28509124]
[1730695180294,4.03522,2478.2,2477.9,0.28509124]
[1730695180491,8.0705,2478.2,2477.9,0.28509124]
[1730695180818,0.8142,2478.0,2477.9,0.28509124]
[1730695181021,0.8142,2478.0,2477.7,0.30263797]
[1730695181318,0.8142,2478.0,2477.8,0.28520835]
[1730695181725,0.8142,2478.0,2477.7,1.6661148]
[1730695182030,0.8142,2478.0,2477.8,0.58785628]
[1730695182193,4.84979,2478.0,2477.8,0.28520985]
[1730695182529,4.84979,2478.0,2477.6,7.49]
[1730695182825,4.84979,2478.0,2477.5,4.03618]
[1730695182991,4.84979,2478.0,2477.7,0.28533748]
[1730695183513,4.84979,2478.0,2477.6,0.17256149]
[1730695183716,4.84979,2478.0,2477.8,0.28521435]
[1730695183917,4.84979,2478.0,2477.7,0.28533748]
[1730695184119,4.84979,2478.0,2477.9,0.28509124]
[1730695184319,4.84979,2478.0,2477.5,9.17107226]
[1730695184320,4.84979,2478.0,2477.8,0.28521435]
[1730695184616,0.8142,2478.0,2477.9,0.28509124]
[1730695184821,0.8142,2478.0,2477.6,4.03608]
[1730695184994,0.8142,2478.0,2477.7,1.50511904]
[1730695185184,0.8142,2478.0,2477.8,0.30268396]
[1730695185384,0.8142,2478.0,2477.7,5.23840871]
[1730695185723,0.8142,2478.0,2477.8,0.58792899]
[1730695186018,4.03496,2478.4,2477.8,4.32105638]
[1730695186217,4.84916,2478.4,2477.9,4.03566]
[1730695186429,4.84916,2478.4,2478.0,0.28498017]
[1730695186917,4.84916,2478.4,2478.0,4.32045017]
[1730695187129,4.84916,2478.4,2478.0,5.11935017]
[1730695187330,4.84916,2478.4,2478.0,1.08388017]
[1730695187490,4.84916,2478.4,2478.0,0.28498017]
[1730695187899,4.03509,2478.3,2477.8,5.21551291]
[1730695188101,4.03509,2478.3,2478.1,0.28484806]
[1730695188392,4.03509,2478.3,2478.2,0.28470844]
[1730695188589,4.03509,2478.3,2477.9,0.30273077]